[Event "Gibraltar Challengers A 2020"]
[Site "Caleta"]
[Date "2020.01.21"]
[Round "1.28"]
[White "Hermes, Geoff R"]
[Black "Vinas Guerrero, Carlos A."]
[Result "1/2-1/2"]
[ECO "B08"]
[WhiteElo "1832"]
[BlackElo "2092"]
[Annotator "NA"]
[PlyCount "379"]
[EventDate "2020.01.20"]
[EventType "swiss"]
[EventCountry "GGB"]
[SourceTitle "playchess.com"]
[Source "ChessBase"]
[SourceQuality "1"]
[TimeControl "6600+10"]

1. d4 {[%emt 0:02:36]} Nf6 {[%emt 0:00:05]} 2. Bf4 {[%emt 0:00:38]} g6 {[%emt 0:01:18]} 3. Nc3 {[%emt 0:02:51]} d6 {[%emt 0:05:14]} 4. e4 {[%emt 0:01:52]} Bg7 {[%emt 0:00:21]} 5. Nf3 {[%emt 0:03:54]} O-O {[%emt 0:01:19]} 6. Qd2 {[%emt 0:05:19]} a6 {[%emt 0:07:33]} 7. O-O-O {[%emt 0:11:52]} b5 {[%emt 0:00:51]} 8. a3 {[%emt 0:02:05]} Bb7 {[%emt 0:09:00]} 9. Re1 {[%emt 0:09:39]} c5 {[%emt 0:06:49]} 10. dxc5 {[%emt 0:17:02]} dxc5 {[%emt 0:04:41]} 11. Qxd8 {[%emt 0:05:58]} Rxd8 {[%emt 0:00:01]} 12. Nd5 {[%emt 0:00:32]} Bxd5 {[%emt 0:23:47]} 13. exd5 {[%emt 0:00:59]} Nxd5 {[%emt 0:00:26]} 14. Bg5 {[%emt 0:08:23]} Nc6 {[%emt 0:06:19]} 15. Bd3 {[%emt 0:02:43]} Rd7 {[%emt 0:15:24]} 16. Be4 {[%emt 0:02:00]} e6 {[%emt 0:00:34]} 17. Bxd5 {[%emt 0:01:20]} Rxd5 {[%emt 0:03:08]} 18. Rd1 {[%emt 0:00:14]} h6 {[%emt 0:07:54]} 19. Be3 {[%emt 0:01:09]} Rad8 {[%emt 0:01:56]} 20. Rxd5 {[%emt 0:00:44]} Rxd5 {[%emt 0:00:04]} 21. c3 {[%emt 0:00:38]} c4 {[%emt 0:06:32]} 22. Rd1 {[%emt 0:02:27]} Rxd1+ {[%emt 0:00:30]} 23. Kxd1 {[%emt 0:00:06]} Kf8 {[%emt 0:00:45]} 24. Kc2 {[%emt 0:00:45]} Ke7 {[%emt 0:00:43]} 25. Bc5+ {[%emt 0:01:07]} Kd7 {[%emt 0:00:27]} 26. b3 {[%emt 0:00:33]} Na5 {[%emt 0:01:44]} 27. b4 {[%emt 0:01:24]} Nc6 {[%emt 0:00:27]} 28. Kd2 {[%emt 0:01:09]} e5 {[%emt 0:00:42]} 29. Ke3 {[%emt 0:02:15]} Ke6 {[%emt 0:01:11]} 30. h3 {[%emt 0:01:12]} f5 {[%emt 0:01:44]} 31. g3 {[%emt 0:03:46]} Bf6 {[%emt 0:00:54]} 32. Bf8 {[%emt 0:00:43]} h5 {[%emt 0:00:25]} 33. Bc5 {[%emt 0:02:00]} Kd5 {[%emt 0:00:22]} 34. Kd2 {[%emt 0:02:18]} e4 {[%emt 0:00:35]} 35. Ne1 {[%emt 0:00:40]} Ne5 {[%emt 0:00:30]} 36. Bd4 {[%emt 0:00:56]} Bg5+ {[%emt 0:00:36]} 37. Ke2 {[%emt 0:00:48]} Nd3 {[%emt 0:00:23]} 38. Nc2 {[%emt 0:00:53]} Bh6 {[%emt 0:00:23]} 39. Ne3+ {[%emt 0:01:22]} Bxe3 {[%emt 0:00:08]} 40. Bxe3 {[%emt 0:00:15]} Ke5 {[%emt 0:00:28]} 41. Bd4+ {[%emt 0:00:27]} Ke6 {[%emt 0:00:10]} 42. Be3 {[%emt 0:00:14]} h4 {[%emt 0:00:14]} 43. Bg5 {[%emt 0:00:56]} hxg3 {[%emt 0:00:01]} 44. fxg3 {[%emt 0:00:16]} Kd5 {[%emt 0:00:15]} 45. Be3 {[%emt 0:00:54]} Ne5 {[%emt 0:00:08]} 46. Bf4 {[%emt 0:00:56]} Nf7 {[%emt 0:00:07]} 47. h4 {[%emt 0:00:25]} Nd8 {[%emt 0:00:08]} 48. Ke3 {[%emt 0:00:26]} Ne6 {[%emt 0:00:06]} 49. Bb8 {[%emt 0:00:37]} g5 {[%emt 0:00:15]} 50. hxg5 {[%emt 0:00:09]} Nxg5 {[%emt 0:00:11]} 51. Kf4 {[%emt 0:00:41]} Nf3 {[%emt 0:00:19]} 52. Ba7 {[%emt 0:00:31]} Ke6 {[%emt 0:00:13]} 53. g4 {[%emt 0:00:39]} fxg4 {[%emt 0:00:11]} 54. Kxe4 {[%emt 0:00:13]} Nd2+ {[%emt 0:00:16]} 55. Kf4 {[%emt 0:00:31]} Nb1 {[%emt 0:00:03]} 56. Kxg4 {[%emt 0:00:13]} Nxc3 {[%emt 0:00:03]} 57. Kf4 {[%emt 0:00:20]} Kd5 {[%emt 0:00:16]} 58. Ke3 {[%emt 0:00:09]} Ne4 {[%emt 0:00:15]} 59. Bd4 {[%emt 0:00:52]} Ng3 {[%emt 0:00:02]} 60. Bb2 {[%emt 0:00:36]} Nf5+ {[%emt 0:00:06]} 61. Kd2 {[%emt 0:00:25]} Ke4 {[%emt 0:00:07]} 62. Kc3 {[%emt 0:00:14]} Ne3 {[%emt 0:00:09]} 63. Bc1 {[%emt 0:00:22]} Nd5+ {[%emt 0:00:17]} 64. Kc2 {[%emt 0:00:03]} Kd4 {[%emt 0:00:12]} 65. Bh6 {[%emt 0:00:03]} c3 {[%emt 0:00:09]} 66. Bg7+ {[%emt 0:00:33]} Kc4 {[%emt 0:00:12]} 67. Bh6 {[%emt 0:00:02]} Nf6 {[%emt 0:00:13]} 68. Bg7 {[%emt 0:00:09]} Nd5 {[%emt 0:00:07]} 69. Bh6 {[%emt 0:00:04]} Nb6 {[%emt 0:00:11]} 70. Bg7 {[%emt 0:00:11]} Nd5 {[%emt 0:00:08]} 71. Bh6 {[%emt 0:00:02]} Kd4 {[%emt 0:00:12]} 72. Bg7+ {[%emt 0:00:06]} Kc4 {[%emt 0:00:11]} 73. Bh6 {[%emt 0:00:03]} Nb6 {[%emt 0:00:15]} 74. Bg7 {[%emt 0:00:02]} Na4 {[%emt 0:00:08]} 75. Bf6 {[%emt 0:00:08]} Nb6 {[%emt 0:00:05]} 76. Bxc3 {[%emt 0:00:10]} Nd5 {[%emt 0:00:05]} 77. Bd2 {[%emt 0:00:10]} Nc7 {[%emt 0:00:11]} 78. Be3 {[%emt 0:00:05]} Ne6 {[%emt 0:00:06]} 79. Bc1 {[%emt 0:00:20]} Nd4+ {[%emt 0:00:03]} 80. Kb2 {[%emt 0:00:02]} Kd3 {[%emt 0:00:08]} 81. Bh6 {[%emt 0:00:07]} Nf5 {[%emt 0:00:05]} 82. Bc1 {[%emt 0:00:06]} Nd6 {[%emt 0:00:03]} 83. Kb3 {[%emt 0:00:06]} Nc4 {[%emt 0:00:09]} 84. Bh6 {[%emt 0:00:31]} Nb6 {[%emt 0:00:31]} 85. Bc1 {[%emt 0:00:05]} Na4 {[%emt 0:00:05]} 86. Bh6 {[%emt 0:00:07]} Nc3 {[%emt 0:00:18]} 87. Bg7 {[%emt 0:00:06]} Ne2 {[%emt 0:00:11]} 88. Bf6 {[%emt 0:00:12]} Nc1+ {[%emt 0:00:10]} 89. Kb2 {[%emt 0:00:11]} Ne2 {[%emt 0:00:07]} 90. Kb3 {[%emt 0:00:02]} Nc1+ {[%emt 0:00:09]} 91. Kb2 {[%emt 0:00:03]} Ne2 {[%emt 0:00:03]} 92. Kb3 {[%emt 0:00:02]} Ng3 {[%emt 0:00:14]} 93. a4 {[%emt 0:00:07]} Ne4 {[%emt 0:00:04]} 94. axb5 {[%emt 0:00:31]} axb5 {[%emt 0:00:02]} 95. Be7 {[%emt 0:00:04]} Nd2+ {[%emt 0:00:05]} 96. Kb2 {[%emt 0:00:02]} Kc4 {[%emt 0:00:04]} 97. Kc2 {[%emt 0:00:14]} Nf1 {[%emt 0:00:16]} 98. Bf8 {[%emt 0:00:03]} Ne3+ {[%emt 0:00:08]} 99. Kb2 {[%emt 0:00:02]} Nd5 {[%emt 0:00:12]} 100. Ka3 {[%emt 0:00:07]} Kc3 {[%emt 0:00:13]} 101. Bg7+ {[%emt 0:00:10]} Kc2 {[%emt 0:00:07]} 102. Bf8 {[%emt 0:00:06]} Ne3 {[%emt 0:00:14]} 103. Be7 {[%emt 0:00:09]} Nc4+ {[%emt 0:00:11]} 104. Ka2 {[%emt 0:00:03]} Ne3 {[%emt 0:00:20]} 105. Ka3 {[%emt 0:00:03]} Nd5 {[%emt 0:00:04]} 106. Bd6 {[%emt 0:00:10]} Kc3 {[%emt 0:00:04]} 107. Bc5 {[%emt 0:00:09]} Kc2 {[%emt 0:00:24]} 108. Bd6 {[%emt 0:00:07]} Ne3 {[%emt 0:00:06]} 109. Bc5 {[%emt 0:00:10]} Nc4+ {[%emt 0:00:10]} 110. Ka2 {[%emt 0:00:01]} Kc3 {[%emt 0:00:04]} 111. Be7 {[%emt 0:00:04]} Nb6 {[%emt 0:00:10]} 112. Ka3 {[%emt 0:00:09]} Kc4 {[%emt 0:00:04]} 113. Bc5 {[%emt 0:00:06]} Na4 {[%emt 0:00:06]} 114. Bf8 {[%emt 0:00:05]} Nc3 {[%emt 0:00:13]} 115. Bc5 {[%emt 0:00:04]} Nb1+ {[%emt 0:00:10]} 116. Kb2 {[%emt 0:00:03]} Nc3 {[%emt 0:00:08]} 117. Ka3 {[%emt 0:00:07]} Ne4 {[%emt 0:00:04]} 118. Be7 {[%emt 0:00:05]} Kc3 {[%emt 0:00:24]} 119. Bf8 {[%emt 0:00:07]} Nd2 {[%emt 0:00:09]} 120. Be7 {[%emt 0:00:03]} Kc2 {[%emt 0:00:07]} 121. Bf8 {[%emt 0:00:08]} Kc3 {[%emt 0:00:13]} 122. Be7 {[%emt 0:00:10]} Nc4+ {[%emt 0:00:16]} 123. Ka2 {[%emt 0:00:02]} Kc2 {[%emt 0:00:14]} 124. Bf8 {[%emt 0:00:04]} Kc3 {[%emt 0:00:12]} 125. Bc5 {[%emt 0:00:07]} Ne5 {[%emt 0:00:09]} 126. Ka3 {[%emt 0:00:14]} Nc6 {[%emt 0:00:10]} 127. Bf8 {[%emt 0:00:05]} Kc4 {[%emt 0:00:14]} 128. Bc5 {[%emt 0:00:07]} Ne5 {[%emt 0:00:08]} 129. Bd6 {[%emt 0:00:09]} Nf3 {[%emt 0:00:05]} 130. Bc5 {[%emt 0:00:06]} Kc3 {[%emt 0:00:13]} 131. Bf8 {[%emt 0:00:04]} Ne1 {[%emt 0:00:04]} 132. Bg7+ {[%emt 0:00:20]} Kc4 {[%emt 0:00:04]} 133. Kb2 {[%emt 0:01:00]} Nd3+ {[%emt 0:00:06]} 134. Kc2 {[%emt 0:00:10]} Nxb4+ {[%emt 0:00:03]} 135. Kb2 {[%emt 0:00:02]} Nd3+ {[%emt 0:00:09]} 136. Kc2 {[%emt 0:00:14]} b4 {[%emt 0:00:04]} 137. Kd2 {[%emt 0:00:05]} b3 {[%emt 0:00:13]} 138. Ke3 {[%emt 0:00:02]} Nc5 {[%emt 0:00:17]} 139. Kd2 {[%emt 0:00:03]} Na4 {[%emt 0:00:17]} 140. Kc1 {[%emt 0:00:07]} Nc3 {[%emt 0:00:27]} 141. Kb2 {[%emt 0:00:10]} Nd1+ {[%emt 0:00:13]} 142. Kc1 {[%emt 0:00:02]} Nf2 {[%emt 0:00:06]} 143. Kd2 {[%emt 0:00:09]} Kb4 {[%emt 0:00:14]} 144. Ke2 {[%emt 0:00:06]} Ne4 {[%emt 0:00:12]} 145. Kd3 {[%emt 0:00:14]} Nc5+ {[%emt 0:00:12]} 146. Kd2 {[%emt 0:00:02]} Ka3 {[%emt 0:00:14]} 147. Kc1 {[%emt 0:00:35]} Ka2 {[%emt 0:00:05]} 148. Bh8 {[%emt 0:00:21]} Nd3+ {[%emt 0:00:13]} 149. Kd2 {[%emt 0:00:05]} Nb2 {[%emt 0:00:08]} 150. Kc1 {[%emt 0:00:25]} Nc4 {[%emt 0:00:13]} 151. Bg7 {[%emt 0:00:05]} Nb6 {[%emt 0:00:14]} 152. Bh8 {[%emt 0:00:10]} Nd5 {[%emt 0:00:04]} 153. Kd2 {[%emt 0:00:08]} Kb1 {[%emt 0:00:12]} 154. Be5 {[%emt 0:00:08]} Nb6 {[%emt 0:00:16]} 155. Bg7 {[%emt 0:00:25]} Ka2 {[%emt 0:00:07]} 156. Kc1 {[%emt 0:00:03]} Nc4 {[%emt 0:00:10]} 157. Bh8 {[%emt 0:00:05]} Ka3 {[%emt 0:00:12]} 158. Bg7 {[%emt 0:00:03]} Kb4 {[%emt 0:00:07]} 159. Bh8 {[%emt 0:00:05]} Nb6 {[%emt 0:00:05]} 160. Kb2 {[%emt 0:00:04]} Ka4 {[%emt 0:00:07]} 161. Bg7 {[%emt 0:00:03]} Nd7 {[%emt 0:00:04]} 162. Bd4 {[%emt 0:00:22]} Kb4 {[%emt 0:00:07]} 163. Bg7 {[%emt 0:00:09]} Nb6 {[%emt 0:00:03]} 164. Bh8 {[%emt 0:00:03]} Na4+ {[%emt 0:00:04]} 165. Kc1 {[%emt 0:00:04]} Nc3 {[%emt 0:00:06]} 166. Kb2 {[%emt 0:00:06]} Na4+ {[%emt 0:00:13]} 167. Kc1 {[%emt 0:00:02]} Kc4 {[%emt 0:00:09]} 168. Bg7 {[%emt 0:00:04]} Nc5 {[%emt 0:00:03]} 169. Kb2 {[%emt 0:00:06]} Ne6 {[%emt 0:00:10]} 170. Bh8 {[%emt 0:00:06]} Nf4 {[%emt 0:00:04]} 171. Bg7 {[%emt 0:00:16]} Kb4 {[%emt 0:00:05]} 172. Bc3+ {[%emt 0:00:09]} Kc4 {[%emt 0:00:03]} 173. Bg7 {[%emt 0:00:04]} Nd5 {[%emt 0:00:09]} 174. Be5 {[%emt 0:00:10]} Ne7 {[%emt 0:00:06]} 175. Bc3 {[%emt 0:00:12]} Nc6 {[%emt 0:00:02]} 176. Bh8 {[%emt 0:00:04]} Nb4 {[%emt 0:00:01]} 177. Bg7 {[%emt 0:00:07]} Nd3+ {[%emt 0:00:08]} 178. Kb1 {[%emt 0:00:05]} Kb4 {[%emt 0:00:03]} 179. Bh8 {[%emt 0:00:04]} Ka3 {[%emt 0:00:11]} 180. Bg7 {[%emt 0:00:05]} Nf2 {[%emt 0:00:14]} 181. Bh8 {[%emt 0:00:05]} Ne4 {[%emt 0:00:05]} 182. Bb2+ {[%emt 0:00:10]} Kb4 {[%emt 0:00:05]} 183. Bh8 {[%emt 0:00:03]} Nd6 {[%emt 0:00:13]} 184. Kb2 {[%emt 0:00:06]} Ka4 {[%emt 0:00:03]} 185. Kb1 {[%emt 0:00:28]} Nc4 {[%emt 0:00:13]} 186. Bg7 {[%emt 0:00:04]} Kb4 {[%emt 0:00:05]} 187. Bh8 {[%emt 0:00:03]} Nd2+ {[%emt 0:00:06]} 188. Kb2 {[%emt 0:00:03]} Nf1 {[%emt 0:00:10]} 189. Bg7 {[%emt 0:00:06]} Ne3 {[%emt 0:00:03]} 190. Bh8 {[%emt 0:00:04]} 1/2-1/2

[Event "Gibraltar Challengers A 2020"]
[Site "Caleta"]
[Date "2020.01.21"]
[Round "1.29"]
[White "Hamer, Martyn"]
[Black "Patola, Eero"]
[Result "1/2-1/2"]
[ECO "D00"]
[WhiteElo "2069"]
[BlackElo "1831"]
[Annotator "NA"]
[PlyCount "90"]
[EventDate "2020.01.20"]
[EventType "swiss"]
[EventCountry "GGB"]
[SourceTitle "playchess.com"]
[Source "ChessBase"]
[SourceQuality "1"]
[TimeControl "6600+10"]

1. d4 {[%emt 0:00:00]} Nf6 {[%emt 0:00:00]} 2. Nc3 {[%emt 0:00:06]} e6 {[%emt 0:00:29]} 3. Bf4 {[%emt 0:00:19]} d5 {[%emt 0:00:58]} 4. Nb5 {[%emt 0:00:22]} Bd6 {[%emt 0:01:03]} 5. Nxd6+ {[%emt 0:00:24]} cxd6 {[%emt 0:00:07]} 6. e3 {[%emt 0:00:23]} Nc6 {[%emt 0:01:34]} 7. Nf3 {[%emt 0:02:51]} h6 {[%emt 0:02:24]} 8. h3 {[%emt 0:01:54]} O-O {[%emt 0:00:25]} 9. Be2 {[%emt 0:06:34]} Re8 {[%emt 0:01:05]} 10. O-O {[%emt 0:01:45]} e5 {[%emt 0:03:40]} 11. Bh2 {[%emt 0:00:49]} Qe7 {[%emt 0:00:32]} 12. c4 {[%emt 0:03:25]} dxc4 {[%emt 0:02:57]} 13. Bxc4 {[%emt 0:00:14]} e4 {[%emt 0:04:15]} 14. Nd2 {[%emt 0:02:28]} d5 {[%emt 0:03:11]} 15. Be2 {[%emt 0:02:08]} Bf5 {[%emt 0:04:40]} 16. a3 {[%emt 0:08:25]} Rac8 {[%emt 0:04:20]} 17. Nb3 {[%emt 0:03:37]} Nd7 {[%emt 0:01:38]} 18. Qd2 {[%emt 0:01:43]} Qd8 {[%emt 0:07:46]} 19. Rac1 {[%emt 0:02:42]} Qb6 {[%emt 0:05:11]} 20. Nc5 {[%emt 0:03:37]} a5 {[%emt 0:03:56]} 21. Na4 {[%emt 0:05:02]} Qa7 {[%emt 0:02:23]} 22. Nc3 {[%emt 0:02:43]} Ne7 {[%emt 0:04:37]} 23. Nb5 {[%emt 0:03:23]} Qb6 {[%emt 0:01:38]} 24. Nd6 {[%emt 0:05:09]} Rxc1 {[%emt 0:01:12]} 25. Rxc1 {[%emt 0:00:23]} Ra8 {[%emt 0:05:59]} 26. Bb5 {[%emt 0:09:00]} Nf8 {[%emt 0:04:24]} 27. Nxf5 {[%emt 0:09:47]} Nxf5 {[%emt 0:01:19]} 28. a4 {[%emt 0:00:12]} Ne6 {[%emt 0:02:22]} 29. Qc3 {[%emt 0:04:10]} Nd6 {[%emt 0:08:16]} 30. Bd7 {[%emt 0:01:40]} Ne8 {[%emt 0:00:54]} 31. b3 {[%emt 0:01:52]} Rd8 {[%emt 0:00:54]} 32. Bxe6 {[%emt 0:03:43]} fxe6 {[%emt 0:01:20]} 33. Be5 {[%emt 0:05:33]} Rd7 {[%emt 0:05:36]} 34. Qc5 {[%emt 0:03:04]} Qd8 {[%emt 0:02:14]} 35. Qb5 {[%emt 0:01:49]} Kf7 {[%emt 0:00:55]} 36. f3 {[%emt 0:02:25]} exf3 {[%emt 0:00:46]} 37. Qf1 {[%emt 0:00:14]} Kg8 {[%emt 0:00:52]} 38. Qxf3 {[%emt 0:00:10]} Rf7 {[%emt 0:02:45]} 39. Qg4 {[%emt 0:00:32]} Qd7 {[%emt 0:00:46]} 40. Qe2 {[%emt 0:02:45]} Nd6 {[%emt 0:02:12]} 41. Bxd6 {[%emt 0:01:05]} Qxd6 {[%emt 0:00:08]} 42. Rc8+ {[%emt 0:00:34]} Rf8 {[%emt 0:00:58]} 43. Qc2 {[%emt 0:01:20]} Rxc8 {[%emt 0:03:27]} 44. Qxc8+ {[%emt 0:00:05]} Kh7 {[%emt 0:00:19]} 45. Kf2 {[%emt 0:01:28]} b6 {[%emt 0:01:19]} 1/2-1/2

[Event "Gibraltar Challengers A 2020"]
[Site "Caleta"]
[Date "2020.01.21"]
[Round "1.30"]
[White "Erdogan, Hassan"]
[Black "Vinal Gutierrez, Pedro"]
[Result "1-0"]
[ECO "D04"]
[WhiteElo "1830"]
[BlackElo "2069"]
[Annotator "NA"]
[PlyCount "149"]
[EventDate "2020.01.20"]
[EventType "swiss"]
[EventCountry "GGB"]
[SourceTitle "playchess.com"]
[Source "ChessBase"]
[SourceQuality "1"]
[TimeControl "6600+10"]

1. d4 {[%emt 0:00:00]} d5 {[%emt 0:00:00]} 2. Nf3 {[%emt 0:00:18]} Nf6 {[%emt 0:00:45]} 3. e3 {[%emt 0:00:22]} Bf5 {[%emt 0:00:21]} 4. Bd3 {[%emt 0:00:45]} e6 {[%emt 0:00:29]} 5. O-O {[%emt 0:03:22]} c6 {[%emt 0:00:43]} 6. c3 {[%emt 0:04:14]} Nbd7 {[%emt 0:00:36]} 7. b3 {[%emt 0:02:14]} Bd6 {[%emt 0:03:45]} 8. Bb2 {[%emt 0:05:20]} Bxd3 {[%emt 0:01:13]} 9. Qxd3 {[%emt 0:00:02]} Ne4 {[%emt 0:00:26]} 10. Nbd2 {[%emt 0:06:00]} f5 {[%emt 0:00:21]} 11. c4 {[%emt 0:04:44]} Qf6 {[%emt 0:01:09]} 12. Qe2 {[%emt 0:12:27]} O-O {[%emt 0:01:13]} 13. g3 {[%emt 0:02:16]} Rf7 {[%emt 0:02:30]} 14. Ne1 {[%emt 0:07:39]} Qg5 {[%emt 0:04:49]} 15. f4 {[%emt 0:05:30]} Qh6 {[%emt 0:02:30]} 16. Nef3 {[%emt 0:04:31]} Nxd2 {[%emt 0:00:41]} 17. Qxd2 {[%emt 0:00:20]} Nf6 {[%emt 0:00:30]} 18. Ne5 {[%emt 0:06:21]} Bxe5 {[%emt 0:00:25]} 19. dxe5 {[%emt 0:00:07]} Ne4 {[%emt 0:00:15]} 20. Qe2 {[%emt 0:00:33]} Rd8 {[%emt 0:01:51]} 21. cxd5 {[%emt 0:03:07]} exd5 {[%emt 0:02:23]} 22. b4 {[%emt 0:01:13]} Re7 {[%emt 0:00:40]} 23. Rfc1 {[%emt 0:02:12]} Qh3 {[%emt 0:00:50]} 24. Bd4 {[%emt 0:03:20]} a6 {[%emt 0:01:29]} 25. a4 {[%emt 0:00:44]} Re6 {[%emt 0:00:23]} 26. Qf1 {[%emt 0:06:58]} Qh6 {[%emt 0:05:21]} 27. Ra2 {[%emt 0:00:29]} Qh5 {[%emt 0:04:12]} 28. Qe2 {[%emt 0:00:53]} Qxe2 {[%emt 0:02:31]} 29. Rxe2 {[%emt 0:00:01]} Rc8 {[%emt 0:00:29]} 30. Rec2 {[%emt 0:00:26]} Kf7 {[%emt 0:01:06]} 31. a5 {[%emt 0:02:52]} Ree8 {[%emt 0:01:42]} 32. Rg2 {[%emt 0:00:44]} Ke6 {[%emt 0:00:53]} 33. Rgc2 {[%emt 0:00:16]} Re7 {[%emt 0:01:05]} 34. Rg2 {[%emt 0:00:12]} g5 {[%emt 0:00:26]} 35. Rf1 {[%emt 0:01:18]} g4 {[%emt 0:00:25]} 36. Rc2 {[%emt 0:03:00]} h5 {[%emt 0:00:10]} 37. Kg2 {[%emt 0:01:37]} Rg7 {[%emt 0:00:44]} 38. Rfc1 {[%emt 0:03:57]} h4 {[%emt 0:01:31]} 39. b5 {[%emt 0:01:02]} c5 {[%emt 0:01:34]} 40. bxa6 {[%emt 0:01:23]} bxa6 {[%emt 0:00:20]} 41. gxh4 {[%emt 0:02:55]} Rh7 {[%emt 0:01:59]} 42. Rb1 {[%emt 0:00:52]} Rc6 {[%emt 0:00:37]} 43. Rb6 {[%emt 0:01:04]} Rhc7 {[%emt 0:05:22]} 44. Rxc5 {[%emt 0:01:03]} Nxc5 {[%emt 0:00:57]} 45. Bxc5 {[%emt 0:00:01]} Rxb6 {[%emt 0:01:15]} 46. Bxb6 {[%emt 0:00:01]} Rh7 {[%emt 0:01:56]} 47. Kg3 {[%emt 0:00:10]} Rh6 {[%emt 0:00:31]} 48. h3 {[%emt 0:00:35]} gxh3 {[%emt 0:00:39]} 49. Kxh3 {[%emt 0:00:01]} Kd7 {[%emt 0:00:54]} 50. Kg3 {[%emt 0:00:24]} Kc6 {[%emt 0:00:13]} 51. Kf3 {[%emt 0:00:54]} Rxh4 {[%emt 0:00:21]} 52. Ke2 {[%emt 0:00:01]} Rh2+ {[%emt 0:01:59]} 53. Kd3 {[%emt 0:00:02]} Ra2 {[%emt 0:00:29]} 54. Kd4 {[%emt 0:00:18]} Ra4+ {[%emt 0:00:06]} 55. Kd3 {[%emt 0:00:08]} Kb5 {[%emt 0:00:38]} 56. Bc7 {[%emt 0:00:37]} Re4 {[%emt 0:00:15]} 57. Bb6 {[%emt 0:00:14]} Kb4 {[%emt 0:00:45]} 58. Ke2 {[%emt 0:00:17]} Kc4 {[%emt 0:02:11]} 59. Kf2 {[%emt 0:00:15]} Kb5 {[%emt 0:00:54]} 60. Kg3 {[%emt 0:00:22]} Rc4 {[%emt 0:04:17]} 61. Kh4 {[%emt 0:00:21]} Rc8 {[%emt 0:00:15]} 62. Kg5 {[%emt 0:00:15]} Rf8 {[%emt 0:00:09]} 63. Bc7 {[%emt 0:00:50]} Kc6 {[%emt 0:06:06]} 64. Bd6 {[%emt 0:00:01]} Rh8 {[%emt 0:01:10]} 65. Kxf5 {[%emt 0:00:03]} Kd7 {[%emt 0:00:20]} 66. Bc5 {[%emt 0:00:30]} Rh6 {[%emt 0:01:14]} 67. Kg5 {[%emt 0:00:19]} Rh1 {[%emt 0:02:47]} 68. f5 {[%emt 0:00:09]} Rc1 {[%emt 0:01:19]} 69. e6+ {[%emt 0:00:17]} Ke8 {[%emt 0:01:08]} 70. Bd4 {[%emt 0:00:24]} Ke7 {[%emt 0:00:21]} 71. Kf4 {[%emt 0:00:28]} Rb1 {[%emt 0:00:29]} 72. Ke5 {[%emt 0:00:19]} Rb5 {[%emt 0:00:25]} 73. f6+ {[%emt 0:00:10]} Ke8 {[%emt 0:00:08]} 74. Kd6 {[%emt 0:00:10]} Rb7 {[%emt 0:00:15]} 75. Kxd5 {[%emt 0:00:18]} 1-0

[Event "Gibraltar Challengers A 2020"]
[Site "Caleta"]
[Date "2020.01.21"]
[Round "1.31"]
[White "Ungureanu, Sandu"]
[Black "Garcia-Blazquez Perez, Manuel"]
[Result "1-0"]
[ECO "A80"]
[WhiteElo "2066"]
[BlackElo "1825"]
[Annotator "NA"]
[PlyCount "111"]
[EventDate "2020.01.20"]
[EventType "swiss"]
[EventCountry "GGB"]
[SourceTitle "playchess.com"]
[Source "ChessBase"]
[SourceQuality "1"]
[TimeControl "6600+10"]

1. c3 {[%emt 0:00:00]} f5 {[%emt 0:00:00]} 2. d4 {[%emt 0:00:05]} Nf6 {[%emt 0:00:04]} 3. Qc2 {[%emt 0:00:31]} g6 {[%emt 0:00:06]} 4. Bg5 {[%emt 0:00:25]} Bg7 {[%emt 0:00:05]} 5. Nd2 {[%emt 0:00:22]} d6 {[%emt 0:00:29]} 6. e4 {[%emt 0:01:23]} e5 {[%emt 0:00:10]} 7. Bd3 {[%emt 0:00:41]} h6 {[%emt 0:05:25]} 8. Bxf6 {[%emt 0:01:45]} Qxf6 {[%emt 0:00:08]} 9. dxe5 {[%emt 0:00:35]} dxe5 {[%emt 0:00:21]} 10. exf5 {[%emt 0:01:26]} gxf5 {[%emt 0:06:57]} 11. Bc4 {[%emt 0:01:20]} Nc6 {[%emt 0:08:49]} 12. O-O-O {[%emt 0:01:13]} Bd7 {[%emt 0:19:49]} 13. Nb3 {[%emt 0:01:06]} Be6 {[%emt 0:18:53]} 14. Bxe6 {[%emt 0:01:41]} Qxe6 {[%emt 0:00:04]} 15. Nc5 {[%emt 0:00:48]} Qf6 {[%emt 0:14:32]} 16. Nxb7 {[%emt 0:01:58]} O-O {[%emt 0:00:16]} 17. Nh3 {[%emt 0:00:52]} e4 {[%emt 0:04:51]} 18. Nc5 {[%emt 0:00:32]} Rfd8 {[%emt 0:05:17]} 19. Qb3+ {[%emt 0:00:51]} Kh7 {[%emt 0:00:25]} 20. Qe6 {[%emt 0:00:26]} Ne5 {[%emt 0:01:59]} 21. Qxf6 {[%emt 0:01:57]} Bxf6 {[%emt 0:00:04]} 22. Rxd8 {[%emt 0:01:25]} Rxd8 {[%emt 0:00:17]} 23. Rd1 {[%emt 0:00:09]} Rb8 {[%emt 0:06:46]} 24. Nd7 {[%emt 0:01:52]} Nxd7 {[%emt 0:01:06]} 25. Rxd7+ {[%emt 0:00:23]} Kg6 {[%emt 0:00:02]} 26. Rxc7 {[%emt 0:00:33]} Be5 {[%emt 0:00:08]} 27. Rxa7 {[%emt 0:01:15]} Bxh2 {[%emt 0:00:06]} 28. Ra6+ {[%emt 0:00:24]} Kh5 {[%emt 0:01:25]} 29. Rf6 {[%emt 0:00:50]} Kg4 {[%emt 0:07:36]} 30. Rxh6 {[%emt 0:00:58]} f4 {[%emt 0:02:31]} 31. Rg6+ {[%emt 0:01:30]} Kh4 {[%emt 0:00:11]} 32. Rh6+ {[%emt 0:02:10]} Kg4 {[%emt 0:00:10]} 33. Ng5 {[%emt 0:00:48]} Kxg5 {[%emt 0:05:02]} 34. Rxh2 {[%emt 0:00:07]} Rd8 {[%emt 0:00:08]} 35. Rh7 {[%emt 0:00:27]} e3 {[%emt 0:00:17]} 36. fxe3 {[%emt 0:00:17]} fxe3 {[%emt 0:00:05]} 37. Re7 {[%emt 0:00:15]} Kf4 {[%emt 0:00:04]} 38. a4 {[%emt 0:01:58]} Rd2 {[%emt 0:00:32]} 39. Kb1 {[%emt 0:00:55]} Rxg2 {[%emt 0:00:06]} 40. a5 {[%emt 0:00:45]} Kf3 {[%emt 0:00:19]} 41. Ka2 {[%emt 0:00:52]} e2 {[%emt 0:00:03]} 42. Kb3 {[%emt 0:00:19]} Rg4 {[%emt 0:00:17]} 43. Kc2 {[%emt 0:00:38]} Rg1 {[%emt 0:00:30]} 44. Kd3 {[%emt 0:02:08]} e1=Q {[%emt 0:00:05]} 45. Rxe1 {[%emt 0:00:06]} Rxe1 {[%emt 0:00:08]} 46. b4 {[%emt 0:00:11]} Rd1+ {[%emt 0:00:05]} 47. Kc4 {[%emt 0:00:07]} Ke4 {[%emt 0:00:04]} 48. a6 {[%emt 0:00:06]} Ke5 {[%emt 0:00:13]} 49. Kc5 {[%emt 0:00:06]} Ke6 {[%emt 0:00:11]} 50. a7 {[%emt 0:00:17]} Rd5+ {[%emt 0:00:33]} 51. Kb6 {[%emt 0:00:39]} Rd6+ {[%emt 0:00:01]} 52. Kb7 {[%emt 0:01:19]} Rd7+ {[%emt 0:00:01]} 53. Ka6 {[%emt 0:00:19]} Rd1 {[%emt 0:00:44]} 54. a8=Q {[%emt 0:00:11]} Ra1+ {[%emt 0:00:09]} 55. Kb7 {[%emt 0:00:04]} Rxa8 {[%emt 0:00:01]} 56. Kxa8 {[%emt 0:00:09]} 1-0